bitfinex/quotes_BTCUSD_20241229
["timestamp","ask_amount","ask_price","bid_price","bid_amount"]
[1735459544947,1.923205,95422.0,95421.0,0.03223885]
[1735459545145,1.923205,95422.0,95421.0,0.03523885]
[1735459545478,1.923205,95422.0,95421.0,0.03623885]
[1735459545818,1.923205,95422.0,95421.0,0.03523885]
[1735459546115,1.923205,95422.0,95421.0,0.03623885]
[1735459546689,1.93964865,95422.0,95421.0,0.03623885]
[1735459547901,2.17631454,95422.0,95421.0,0.03623885]
[1735459548297,1.93964865,95422.0,95421.0,0.03623885]
[1735459552709,1.93964865,95422.0,95421.0,0.0040854]
[1735459553241,1.923205,95422.0,95421.0,0.0040854]
[1735459556625,1.93964898,95422.0,95421.0,0.0040854]
[1735459559151,1.93981978,95422.0,95421.0,0.0040854]
[1735459563153,1.9233758,95422.0,95421.0,0.0040854]
[1735459564664,2.0477758,95422.0,95421.0,0.0040854]
[1735459564906,0.1245708,95422.0,95421.0,0.0040854]
[1735459565081,2.3427008,95422.0,95421.0,0.0040854]
[1735459565479,2.3427008,95422.0,95421.0,0.0010854]
[1735459565823,2.3467008,95422.0,95421.0,8.54e-05]
[1735459566240,2.2314298,95422.0,95421.0,8.54e-05]
[1735459566596,2.18793837,95422.0,95421.0,8.54e-05]
[1735459566809,2.13771937,95422.0,95421.0,8.54e-05]
[1735459567160,2.13571937,95422.0,95421.0,8.54e-05]
[1735459567660,2.12663837,95422.0,95421.0,8.54e-05]
[1735459567868,2.04763837,95422.0,95421.0,8.54e-05]
[1735459568708,1.46497737,95422.0,95421.0,8.54e-05]
[1735459568908,1.46497737,95422.0,95421.0,0.0461854]
[1735459568909,1.27541737,95422.0,95421.0,0.0461854]
[1735459569091,1.15823437,95422.0,95421.0,0.0461854]
[1735459569557,1.15723437,95422.0,95421.0,0.0461854]
[1735459569709,1.15123437,95422.0,95421.0,0.0461854]
[1735459570080,1.15623437,95422.0,95421.0,0.0461854]
[1735459570284,1.39258786,95422.0,95421.0,0.0461854]
[1735459570412,1.39058786,95422.0,95421.0,0.0461854]
[1735459570615,1.39158786,95422.0,95421.0,0.0461854]
[1735459570815,1.38858786,95422.0,95421.0,0.0461854]
[1735459572280,1.39058786,95422.0,95421.0,0.0461854]
[1735459573248,1.37414129,95422.0,95421.0,0.0461854]
[1735459576459,1.39058613,95422.0,95421.0,8.54e-05]
[1735459582914,1.39058613,95422.0,95421.0,0.0832854]
[1735459583115,1.37414129,95422.0,95421.0,0.0832854]
[1735459584059,1.32486515,95422.0,95421.0,0.0832854]
[1735459584926,1.32386515,95422.0,95421.0,0.0832854]
[1735459585281,1.1357878,95422.0,95421.0,0.0832854]
[1735459585485,1.1367878,95422.0,95421.0,0.0862854]
[1735459585683,1.1357878,95422.0,95421.0,0.0832854]
[1735459585882,1.1347878,95422.0,95421.0,0.0862854]
[1735459586031,1.1357878,95422.0,95421.0,0.0892854]
[1735459586653,1.15223264,95422.0,95421.0,0.0892854]
[1735459587567,1.15223264,95422.0,95421.0,0.0862854]
[1735459587785,1.15223264,95422.0,95421.0,0.0892854]
[1735459588160,1.15223264,95422.0,95421.0,0.0862854]
[1735459588566,1.15223264,95422.0,95421.0,0.0892854]
[1735459590607,1.15223264,95422.0,95421.0,0.18571393]
[1735459590776,1.03055064,95422.0,95421.0,0.3066637]
[1735459591781,0.92571664,95422.0,95421.0,0.3066637]
[1735459593227,0.75358293,95422.0,95421.0,0.3066637]
[1735459593409,0.75358293,95422.0,95421.0,0.33734715]
[1735459593586,0.537207,95422.0,95421.0,0.33734715]
[1735459594628,0.5373778,95422.0,95421.0,0.33734715]
[1735459594761,0.5373778,95422.0,95421.0,0.3066637]
[1735459596513,0.55382152,95422.0,95421.0,0.3066637]
[1735459603353,0.5373778,95422.0,95421.0,0.3066637]
[1735459606659,0.01661452,95422.0,95421.0,0.3066637]
[1735459607058,1.14021252,95422.0,95421.0,0.3066637]
[1735459612538,1.14021252,95422.0,95421.0,0.0060854]
[1735459613128,1.1237688,95422.0,95421.0,0.0060854]
[1735459613351,1.2017688,95422.0,95421.0,0.0060854]
[1735459613755,1.2017688,95422.0,95421.0,8.54e-05]
[1735459613953,1.2017688,95422.0,95421.0,0.0010854]
[1735459615230,1.2017688,95422.0,95421.0,0.0040854]
[1735459615624,1.2017688,95422.0,95421.0,0.0050854]
[1735459615963,1.2017688,95422.0,95421.0,8.54e-05]
[1735459616162,1.2017688,95422.0,95421.0,0.0020854]
[1735459616365,1.21821451,95422.0,95421.0,0.0020854]
[1735459622129,1.21821451,95422.0,95421.0,8.54e-05]
[1735459622499,1.22021451,95422.0,95421.0,8.54e-05]
[1735459622919,1.22121451,95422.0,95421.0,8.54e-05]
[1735459623049,1.22021451,95422.0,95421.0,8.54e-05]
[1735459623251,1.2047688,95422.0,95421.0,8.54e-05]
[1735459625772,1.48839299,95422.0,95421.0,8.54e-05]
[1735459626535,0.381242,95422.0,95421.0,8.54e-05]
[1735459626734,2.444854,95422.0,95421.0,8.54e-05]
[1735459627330,2.16122981,95422.0,95421.0,8.54e-05]
[1735459633322,2.1447828,95422.0,95421.0,8.54e-05]
[1735459636308,2.16122989,95422.0,95421.0,8.54e-05]
[1735459637639,2.16022989,95422.0,95421.0,8.54e-05]
[1735459637841,2.16122989,95422.0,95421.0,8.54e-05]
[1735459638358,2.16222989,95422.0,95421.0,8.54e-05]
[1735459638676,2.16422989,95422.0,95421.0,8.54e-05]
[1735459639105,0.10061789,95422.0,95421.0,8.54e-05]
[1735459639314,2.16422989,95422.0,95421.0,8.54e-05]
[1735459643035,2.16780136,95422.0,95421.0,8.54e-05]
[1735459643233,2.2189873,95422.0,95421.0,8.54e-05]
[1735459643384,2.20254021,95422.0,95421.0,8.54e-05]
[1735459643772,2.27689621,95422.0,95421.0,8.54e-05]
[1735459644442,2.27089621,95422.0,95421.0,8.54e-05]
[1735459644591,2.27489621,95422.0,95421.0,8.54e-05]
[1735459644801,2.28289621,95422.0,95421.0,8.54e-05]
[1735459645220,2.28789621,95422.0,95421.0,8.54e-05]
[1735459645383,2.29189621,95422.0,95421.0,8.54e-05]
[1735459645588,2.28389621,95422.0,95421.0,8.54e-05]
[1735459645789,2.29189621,95422.0,95421.0,8.54e-05]
[1735459646395,2.30834506,95422.0,95421.0,8.54e-05]
[1735459646642,2.30434506,95422.0,95421.0,8.54e-05]
[1735459647062,2.29034506,95422.0,95421.0,8.54e-05]
[1735459647410,2.29834506,95422.0,95421.0,8.54e-05]
[1735459650263,2.24655335,95422.0,95421.0,8.54e-05]
[1735459653397,2.54942567,95422.0,95421.0,8.54e-05]
[1735459654512,2.53802167,95422.0,95421.0,8.54e-05]
[1735459655583,2.51677544,95422.0,95421.0,8.54e-05]
[1735459655780,2.54222567,95422.0,95421.0,8.54e-05]
[1735459656159,2.2229045,95422.0,95421.0,8.54e-05]
[1735459656358,2.23935305,95422.0,95421.0,8.54e-05]
[1735459656908,1.60703005,95422.0,95421.0,8.54e-05]
[1735459658134,1.52545858,95422.0,95421.0,8.54e-05]
[1735459658334,1.52903005,95422.0,95421.0,8.54e-05]
[1735459663053,1.50357982,95422.0,95421.0,8.54e-05]
[1735459663317,1.52903005,95422.0,95421.0,8.54e-05]
[1735459664621,1.5125815,95422.0,95421.0,8.54e-05]
[1735459665673,1.5083775,95422.0,95421.0,8.54e-05]
[1735459667643,1.52482702,95422.0,95421.0,8.54e-05]
[1735459670274,1.78232702,95422.0,95421.0,8.54e-05]
[1735459671575,1.77432702,95422.0,95421.0,8.54e-05]
[1735459671773,1.77132702,95422.0,95421.0,8.54e-05]
[1735459671999,1.78032702,95422.0,95421.0,8.54e-05]
[1735459672211,1.77632702,95422.0,95421.0,0.0010854]
[1735459672544,1.78032702,95422.0,95421.0,8.54e-05]
[1735459672924,1.78532702,95422.0,95421.0,0.0010854]
[1735459673241,1.7688775,95422.0,95421.0,0.0010854]
[1735459674610,1.5113775,95422.0,95421.0,0.0010854]
[1735459676134,2.1068045,95422.0,95421.0,0.0010854]
[1735459677893,2.12325402,95422.0,95421.0,0.0010854]
[1735459682641,1.95164046,95422.0,95421.0,0.0010854]
[1735459682772,1.95164052,95422.0,95421.0,0.0010854]
[1735459683341,1.935191,95422.0,95421.0,0.0010854]
[1735459684350,2.192691,95422.0,95421.0,0.0010854]
[1735459686545,2.51183769,95422.0,95421.0,0.0010854]
[1735459686751,2.51192309,95422.0,95421.0,0.0010854]
[1735459687843,2.20922592,95422.0,95421.0,0.0010854]
[1735459688892,2.52837261,95422.0,95421.0,0.0010854]
[1735459689236,0.59318161,95422.0,95421.0,0.0010854]
[1735459689435,2.52837261,95422.0,95421.0,0.0010854]
[1735459689638,2.27087261,95422.0,95421.0,0.0010854]
[1735459690162,1.95172592,95422.0,95421.0,0.0010854]
[1735459693045,1.95172592,95422.0,95421.0,8.54e-05]
[1735459693565,1.95672592,95422.0,95421.0,0.0010854]
[1735459693728,1.96572592,95422.0,95400.0,0.0756]
[1735459694066,1.935191,95421.0,95400.0,0.0756]
[1735459694831,1.935191,95421.0,95400.0,0.0766]
[1735459695034,1.935191,95421.0,95400.0,0.0756]
[1735459695478,0.31952824,95407.0,95400.0,0.0756]
[1735459695785,0.31952824,95407.0,95400.0,0.07255557]
[1735459695991,1.935191,95406.0,95400.0,0.07255557]
[1735459696598,1.935191,95407.0,95400.0,0.07355557]
[1735459696923,1.937191,95407.0,95400.0,0.07255557]
[1735459697094,0.007,95406.0,95400.0,0.07355557]
[1735459697253,1.935191,95405.0,95400.0,0.07406481]
[1735459697599,1.95164087,95405.0,95400.0,0.07406481]
[1735459697776,1.935191,95404.0,95400.0,0.07406481]
[1735459698813,1.935191,95404.0,95400.0,0.07415021]
[1735459699040,1.935191,95404.0,95400.0,0.07315021]
[1735459699968,1.937191,95404.0,95400.0,0.07315021]
[1735459700343,1.935191,95403.0,95400.0,0.07415021]
[1735459700474,1.935191,95403.0,95400.0,0.06941931]
[1735459700659,1.935191,95403.0,95400.0,0.06841931]
[1735459700859,1.935191,95403.0,95400.0,0.06941931]
[1735459701060,1.935191,95403.0,95400.0,0.06841931]
[1735459701486,1.940191,95403.0,95400.0,0.06941931]
[1735459701686,1.935191,95402.0,95400.0,0.06941931]
[1735459703241,1.937191,95402.0,95400.0,0.06941931]
[1735459703446,1.935191,95401.0,95400.0,0.06841931]
[1735459704679,1.939191,95401.0,95400.0,0.06841931]
[1735459705758,1.940191,95401.0,95400.0,0.06841931]
[1735459707540,1.95664097,95401.0,95400.0,0.06841931]
[1735459713422,1.940191,95401.0,95400.0,0.06841931]
[1735459715358,1.940191,95401.0,95400.0,0.00059464]
[1735459715570,1.9663613,95401.0,95400.0,0.00059464]
[1735459715773,1.9513613,95401.0,95400.0,0.00059464]
[1735459716546,1.96781234,95401.0,95400.0,0.00059464]
[1735459716975,1.94164204,95401.0,95400.0,0.00059464]
[1735459721123,1.99386834,95401.0,95400.0,0.00059464]
[1735459721337,2.07296834,95401.0,95400.0,0.00059464]
[1735459721540,2.0839278,95401.0,95400.0,0.00059464]
[1735459721741,2.0317015,95401.0,95400.0,0.00059464]
[1735459721920,2.0318723,95401.0,95400.0,0.00059464]
[1735459722122,2.0308723,95401.0,95400.0,0.00059464]
[1735459722424,2.0298723,95401.0,95400.0,0.00059464]
[1735459722661,2.0388723,95401.0,95400.0,0.00159464]
[1735459723078,2.02242126,95401.0,95400.0,0.00159464]
[1735459723680,2.01942126,95401.0,95400.0,0.00159464]
[1735459724232,2.02242126,95401.0,95400.0,0.00159464]
[1735459726147,2.03887468,95401.0,95400.0,0.00159464]
[1735459726772,2.03887468,95401.0,95380.0,0.07102922]
[1735459726986,1.920191,95400.0,95380.0,0.07102922]
[1735459728582,0.28345491,95381.0,95380.0,0.07102922]
[1735459728803,2.20364591,95381.0,95380.0,0.07102922]
[1735459729009,0.28345491,95381.0,95380.0,0.07102922]
[1735459729417,0.29990887,95381.0,95380.0,0.07102922]
[1735459729996,2.22009987,95381.0,95380.0,0.07202922]
[1735459730179,1.93664496,95381.0,95380.0,0.07202922]
[1735459730377,1.93664496,95381.0,95380.0,0.07302922]
[1735459731212,1.78656596,95381.0,95380.0,0.07302922]
[1735459731847,1.74440196,95381.0,95380.0,0.07302922]
[1735459732074,1.67459796,95381.0,95380.0,0.07202922]
[1735459732522,1.67859796,95381.0,95380.0,0.07202922]
[1735459732948,1.67859796,95381.0,95380.0,0.07102922]
[1735459733357,1.663144,95381.0,95380.0,0.07102922]
[1735459733561,1.663144,95381.0,95380.0,0.07111462]
[1735459733970,1.662144,95381.0,95380.0,0.07111462]
[1735459734422,1.662144,95381.0,95380.0,0.07211462]
[1735459736445,1.67859777,95381.0,95380.0,0.07211462]
[1735459739779,1.67859777,95381.0,95380.0,0.06122595]
[1735459740425,0.02045377,95381.0,95380.0,0.06122595]
[1735459740811,1.94064477,95381.0,95380.0,0.06122595]
[1735459742479,1.94064477,95381.0,95380.0,0.05145968]
[1735459742692,1.87017477,95381.0,95380.0,0.0351026]
[1735459743305,1.853721,95381.0,95380.0,0.0351026]
[1735459743811,1.664797,95381.0,95380.0,0.0351026]
[1735459743938,1.489402,95381.0,95380.0,0.0351026]
[1735459744160,1.428994,95381.0,95380.0,0.0351026]
[1735459745056,1.4291648,95381.0,95380.0,0.0351026]
[1735459745533,1.4011848,95381.0,95380.0,0.0351026]
[1735459745854,1.4011848,95381.0,95380.0,0.0824026]
[1735459746491,1.41763814,95381.0,95380.0,0.0824026]
[1735459748822,1.41763814,95381.0,95380.0,0.08182107]
[1735459749046,1.41763814,95381.0,95380.0,0.18182107]
[1735459750008,1.41763814,95381.0,95380.0,0.18082107]
[1735459750215,1.41763814,95381.0,95380.0,0.18182107]
[1735459750702,1.41763814,95381.0,95380.0,0.18082107]
[1735459751200,1.41363814,95381.0,95380.0,0.18082107]
[1735459751656,1.41363814,95381.0,95380.0,0.18182107]
[1735459751889,1.41363814,95381.0,95380.0,0.18082107]
[1735459752125,1.41463814,95381.0,95380.0,0.18882107]
[1735459753303,1.3981848,95381.0,95380.0,0.18882107]
[1735459753550,1.3981848,95381.0,95380.0,0.18382107]
[1735459753800,1.3981848,95381.0,95380.0,0.18782107]
[1735459754343,1.3971848,95381.0,95380.0,0.08482107]
[1735459754582,1.3981848,95381.0,95380.0,0.0543854]
[1735459755089,1.3981848,95381.0,95380.0,0.0503854]
[1735459755339,1.3981848,95381.0,95380.0,0.0070854]
[1735459755765,1.3981848,95381.0,95380.0,0.0030854]
[1735459756003,1.3971848,95381.0,95380.0,8.54e-05]
[1735459756211,1.3971848,95381.0,95380.0,0.0030854]
[1735459756212,1.63415209,95381.0,95380.0,0.0030854]
[1735459756567,1.63415209,95381.0,95380.0,0.0060854]
[1735459756568,1.65060552,95381.0,95380.0,0.0060854]
[1735459756981,1.41463823,95381.0,95380.0,0.0060854]
[1735459757379,1.41363823,95381.0,95380.0,0.0030854]
[1735459757584,1.41363823,95381.0,95380.0,0.0060854]
[1735459757957,1.41363823,95381.0,95380.0,8.54e-05]
[1735459758157,1.41363823,95381.0,95380.0,0.0050854]
[1735459759463,1.93681523,95381.0,95380.0,0.0050854]
[1735459763439,1.9203618,95381.0,95380.0,0.0050854]
[1735459763983,1.9203618,95381.0,95380.0,0.0019643]
[1735459766696,1.93681573,95381.0,95380.0,0.0019643]
[1735459767117,1.93681573,95381.0,95379.0,0.03]
[1735459767321,1.920191,95380.0,95379.0,0.03]
[1735459768331,1.922191,95380.0,95379.0,0.02483111]
[1735459773950,1.70029868,95380.0,95379.0,0.02483111]
[1735459774150,1.700299,95380.0,95379.0,0.02483111]
[1735459779394,1.700299,95380.0,95379.0,0.02491651]
[1735459783827,1.698299,95380.0,95379.0,0.02491651]
[1735459784001,1.705299,95380.0,95379.0,0.02491651]
[1735459784209,1.700299,95380.0,95379.0,0.02491651]
[1735459784531,1.705299,95380.0,95379.0,0.02491651]
[1735459784749,1.72175331,95380.0,95379.0,0.02491651]
[1735459785174,1.71975331,95380.0,95379.0,0.02491651]
[1735459785588,1.72175331,95380.0,95379.0,0.02491651]
[1735459787747,0.02345431,95380.0,95379.0,0.02491651]
[1735459787878,1.72175331,95380.0,95379.0,0.02491651]
[1735459790383,1.72192411,95380.0,95379.0,0.02491651]
[1735459792254,1.72192411,95380.0,95379.0,8.54e-05]
[1735459794724,1.7054698,95380.0,95379.0,8.54e-05]
[1735459797774,1.72192434,95380.0,95379.0,8.54e-05]
[1735459804943,1.7054698,95380.0,95379.0,8.54e-05]
[1735459807795,1.72192413,95380.0,95379.0,8.54e-05]
[1735459813353,1.7054698,95380.0,95379.0,8.54e-05]
[1735459816553,1.72192397,95380.0,95379.0,8.54e-05]
[1735459823916,0.02362497,95380.0,95379.0,8.54e-05]
[1735459824149,1.72192397,95380.0,95379.0,8.54e-05]
[1735459824766,1.7054698,95380.0,95379.0,8.54e-05]
[1735459829271,1.7219241,95380.0,95379.0,8.54e-05]
[1735459830303,1.6539031,95380.0,95379.0,8.54e-05]
[1735459832447,1.6539031,95380.0,95371.0,0.07161072]
[1735459832676,1.698299,95379.0,95371.0,0.06480257]
[1735459832995,1.698299,95379.0,95368.0,0.0474708]
[1735459833747,2.01800657,95379.0,95368.0,0.0474708]
[1735459833954,1.698299,95378.0,95368.0,0.0474708]
[1735459834886,2.01800657,95378.0,95368.0,0.0474708]
[1735459835313,0.31970757,95378.0,95368.0,0.0474708]
[1735459835559,1.698299,95377.0,95368.0,0.0474708]
[1735459836713,1.702299,95377.0,95368.0,0.0474708]
[1735459836861,1.698299,95376.0,95368.0,0.0474708]
[1735459838103,0.01645434,95375.0,95368.0,0.0474708]
[1735459838303,1.698299,95374.0,95368.0,0.0474708]
[1735459839917,1.701299,95374.0,95368.0,0.0474708]
[1735459840278,1.698299,95373.0,95368.0,0.0474708]
[1735459841129,1.698299,95373.0,95368.0,0.03751472]
[1735459842143,1.698299,95374.0,95368.0,0.03751472]
[1735459842345,0.002,95373.0,95368.0,0.03751472]
[1735459842560,0.28418409,95369.0,95368.0,0.03751472]
[1735459842983,1.98248309,95369.0,95368.0,0.03751472]
[1735459843393,1.698299,95369.0,95368.0,0.03751472]
[1735459843633,1.698299,95372.0,95368.0,0.03751472]
[1735459843843,1.698299,95377.0,95368.0,0.03758508]
[1735459844042,0.001,95369.0,95368.0,0.03758508]
[1735459844264,1.699299,95369.0,95368.0,0.03758508]
[1735459845122,1.698299,95369.0,95368.0,0.03758508]
[1735459845452,1.702299,95377.0,95368.0,0.03758508]
[1735459845679,1.698299,95376.0,95368.0,0.03758508]
[1735459846039,0.001,95369.0,95368.0,0.03758508]
[1735459846246,1.698299,95369.0,95368.0,0.03758508]
[1735459846454,1.698299,95376.0,95368.0,0.03758508]
[1735459846652,0.01645463,95369.0,95368.0,0.03758508]
[1735459846852,1.71475363,95369.0,95368.0,0.03758508]
[1735459847028,1.74261331,95369.0,95368.0,0.03867048]
[1735459847229,1.71575363,95369.0,95368.0,0.03867048]
[1735459847653,1.71575363,95369.0,95368.0,0.00115576]
[1735459848706,1.71475363,95369.0,95368.0,0.00015576]
[1735459849107,1.71775363,95369.0,95368.0,0.00015576]
[1735459849642,1.71875363,95369.0,95368.0,0.00015576]
[1735459850021,1.71975363,95369.0,95368.0,0.00015576]
[1735459850415,1.71875363,95369.0,95368.0,0.00015576]
[1735459850619,1.71875363,95369.0,95368.0,0.00115576]
[1735459853410,1.517213,95369.0,95368.0,0.00115576]
[1735459854376,1.517213,95369.0,95368.0,0.00015576]
[1735459855326,1.513213,95369.0,95368.0,0.00015576]
[1735459855530,1.516213,95369.0,95368.0,0.00015576]
[1735459855755,1.79713145,95369.0,95368.0,0.00015576]
[1735459856079,1.79913145,95369.0,95368.0,0.00015576]
[1735459856575,1.53166919,95369.0,95368.0,0.00015576]
[1735459857681,1.81558764,95369.0,95368.0,0.00015576]
[1735459858244,1.81575844,95369.0,95368.0,0.00015576]
[1735459858969,1.53183999,95369.0,95368.0,0.00015576]
[1735459864015,1.85127905,95369.0,95368.0,0.00015576]
[1735459865287,1.53183999,95369.0,95368.0,0.00015576]
[1735459866456,1.5153838,95369.0,95368.0,0.00015576]
[1735459868271,1.53183993,95369.0,95368.0,0.00015576]
[1735459873201,1.5153838,95369.0,95368.0,0.00015576]
[1735459875633,1.27676,95369.0,95368.0,0.00015576]
[1735459876153,1.29321613,95369.0,95368.0,0.00015576]
[1735459877965,1.29721613,95369.0,95368.0,0.00015576]
[1735459878664,1.30121613,95369.0,95368.0,0.00015576]
[1735459879084,1.30021613,95369.0,95368.0,0.00015576]
[1735459879600,1.30121613,95369.0,95368.0,0.00015576]
[1735459881166,1.30138693,95369.0,95368.0,0.00015576]
[1735459882164,1.37778693,95369.0,95368.0,0.00015576]
[1735459882312,1.40334527,95369.0,95368.0,0.00015576]
[1735459882714,1.38688914,95369.0,95368.0,0.00015576]
[1735459883707,1.3613308,95369.0,95368.0,0.00015576]
[1735459885733,1.37778833,95369.0,95368.0,0.00015576]
[1735459886820,1.37078833,95369.0,95368.0,0.00015576]
[1735459887170,1.37478833,95369.0,95368.0,0.00015576]
[1735459887919,1.36978833,95369.0,95368.0,0.00015576]
[1735459888120,1.37078833,95369.0,95368.0,0.00015576]
[1735459888340,1.37578833,95369.0,95368.0,0.00015576]
[1735459888522,1.37478833,95369.0,95368.0,0.00015576]
[1735459888725,1.37678833,95369.0,95368.0,0.00015576]
[1735459891620,0.10002833,95369.0,95368.0,0.00015576]
[1735459891744,1.37678833,95369.0,95368.0,0.00015576]
[1735459893523,1.3603308,95369.0,95368.0,0.00015576]
[1735459896223,1.2839308,95369.0,95368.0,0.00015576]
[1735459896411,1.30038826,95369.0,95368.0,0.00015576]
[1735459897832,1.29838826,95369.0,95368.0,0.00015576]
[1735459898038,1.29538826,95369.0,95368.0,0.00015576]
[1735459898457,1.29338826,95369.0,95368.0,0.00015576]
[1735459898939,1.29538826,95369.0,95368.0,0.00015576]
[1735459899375,1.30138826,95369.0,95368.0,0.00015576]
[1735459899803,1.29538826,95369.0,95368.0,0.00015576]
[1735459901286,1.30138826,95369.0,95368.0,0.00015576]
[1735459903377,1.2849308,95369.0,95368.0,0.00015576]
[1735459903628,0.0081708,95369.0,95368.0,0.00015576]
[1735459903860,1.2849308,95369.0,95368.0,0.00015576]
[1735459906069,1.2849308,95369.0,95368.0,0.12505576]
[1735459906272,1.29338696,95369.0,95368.0,0.12505576]
[1735459906472,1.29338696,95369.0,95368.0,0.12705576]
[1735459907722,1.29338696,95369.0,95368.0,0.12505576]
[1735459908146,1.29638696,95369.0,95368.0,0.12505576]
[1735459909330,1.29338696,95369.0,95368.0,0.12505576]
[1735459909536,1.29438696,95369.0,95368.0,0.12505576]
[1735459909719,1.29438696,95369.0,95368.0,0.12605576]
[1735459913332,1.2779308,95369.0,95368.0,0.12605576]
[1735459916422,1.29438691,95369.0,95368.0,0.12605576]
[1735459916831,0.01762691,95369.0,95368.0,0.12605576]
[1735459917214,1.29438691,95369.0,95368.0,0.12605576]
[1735459917536,0.01762691,95369.0,95368.0,0.12605576]
[1735459917848,1.29438691,95369.0,95368.0,0.12605576]
[1735459918089,0.01762691,95369.0,95368.0,0.12605576]
[1735459918268,1.29438691,95369.0,95368.0,0.12605576]
[1735459919091,1.29438691,95369.0,95368.0,0.04775576]
[1735459923053,1.264387,95369.0,95368.0,0.04775576]
[1735459926344,1.28084316,95369.0,95368.0,0.00115576]
[1735459926749,1.28101396,95369.0,95368.0,0.00115576]
[1735459927600,1.36321396,95369.0,95368.0,0.00115576]
[1735459927838,1.30843611,95369.0,95368.0,0.00115576]
[1735459928152,0.01662696,95369.0,95368.0,0.00115576]
[1735459928296,1.28101396,95369.0,95368.0,0.00115576]
[1735459928501,1.28101396,95369.0,95368.0,0.00015576]
[1735459928912,1.28201396,95369.0,95368.0,0.00015576]
[1735459929291,1.28501396,95369.0,95368.0,0.00015576]
[1735459931453,1.28101396,95369.0,95368.0,0.00015576]
[1735459931844,1.28501396,95369.0,95368.0,0.00015576]
[1735459932253,1.28501396,95369.0,95368.0,0.22205576]
[1735459932465,1.2685578,95369.0,95368.0,0.22205576]
[1735459933076,1.45347601,95369.0,95368.0,0.22205576]
[1735459933491,1.45447601,95369.0,95368.0,0.22205576]
[1735459934100,1.2655578,95369.0,95368.0,0.22205576]
[1735459934505,1.2655578,95369.0,95368.0,0.22405576]
[1735459934686,1.2645578,95369.0,95368.0,0.22405576]
[1735459935022,1.2655578,95369.0,95368.0,0.22205576]
[1735459935170,1.2645578,95369.0,95368.0,0.22405576]
[1735459935361,1.28101211,95369.0,95368.0,0.22405576]
[1735459935574,1.28201211,95369.0,95368.0,0.22405576]
[1735459936769,1.28201211,95369.0,95368.0,0.32405576]
[1735459942231,1.28201211,95369.0,95368.0,0.32100836]
[1735459943248,1.2655578,95369.0,95368.0,0.32100836]
[1735459946368,1.28201196,95369.0,95368.0,0.32100836]
[1735459949419,1.28201196,95369.0,95368.0,0.32109376]
[1735459953385,1.2655578,95369.0,95368.0,0.32109376]
[1735459956602,1.28201132,95369.0,95368.0,0.32109376]
[1735459963310,1.2655578,95369.0,95368.0,0.32109376]
[1735459963520,1.2655578,95369.0,95368.0,0.35320314]
[1735459963724,1.1437198,95369.0,95368.0,0.35320314]
[1735459965131,1.1437198,95369.0,95368.0,0.32109376]
[1735459966701,1.16017275,95369.0,95368.0,0.32109376]
[1735459967554,1.10458775,95369.0,95368.0,0.32109376]
[1735459973450,1.0881348,95369.0,95368.0,0.32109376]
[1735459977776,1.1045876,95369.0,95368.0,0.32109376]
[1735459981824,1.2820106,95369.0,95368.0,0.32109376]
[1735459981938,0.0176236,95369.0,95368.0,0.32109376]
[1735459982594,1.2820106,95369.0,95368.0,0.32109376]
[1735459983314,1.2655578,95369.0,95368.0,0.32109376]
[1735459984703,1.2655578,95369.0,95368.0,0.31909376]
[1735459985045,1.2655578,95369.0,95368.0,0.32109376]
[1735459985178,1.2665578,95369.0,95368.0,0.32027102]
[1735459986377,1.28101054,95369.0,95368.0,0.31827102]
[1735459986778,1.28301054,95369.0,95368.0,0.32527102]
[1735459992715,0.01862354,95369.0,95368.0,0.32527102]
[1735459993262,0.0021708,95369.0,95368.0,0.32527102]
[1735459993468,1.2665578,95369.0,95368.0,0.32527102]
[1735459993667,0.0021708,95369.0,95368.0,0.32527102]
[1735459994118,1.2665578,95369.0,95368.0,0.32527102]
[1735459995162,1.2655578,95369.0,95368.0,0.32227102]
[1735459995333,1.2655578,95369.0,95368.0,0.20037102]
[1735459996317,1.2655578,95369.0,95368.0,0.19937102]
[1735459996513,1.28201056,95369.0,95368.0,0.19937102]
[1735459996719,1.28201056,95369.0,95368.0,0.20037102]
[1735459996931,1.28301056,95369.0,95368.0,0.20337102]
[1735459997117,1.28201056,95369.0,95368.0,0.19937102]
[1735459997529,1.28301056,95369.0,95368.0,0.20337102]
[1735460000686,1.06106376,95369.0,95368.0,0.20337102]
[1735460003160,1.06106376,95369.0,95368.0,0.1070854]
[1735460003360,1.044611,95369.0,95368.0,0.20337102]
[1735460006405,1.06106408,95369.0,95368.0,0.20337102]
[1735460008427,1.06123488,95369.0,95368.0,0.20337102]
[1735460013423,1.0447818,95369.0,95368.0,0.20337102]
[1735460014155,1.0447818,95369.0,95368.0,0.22370812]
[1735460014572,1.0447818,95369.0,95368.0,0.20337102]
[1735460016424,1.06123463,95369.0,95368.0,0.20337102]
[1735460018160,1.06023463,95369.0,95368.0,0.20037102]
[1735460018359,1.05923463,95369.0,95368.0,0.19637102]
[1735460018559,0.01862363,95369.0,95368.0,0.20337102]
[1735460018768,1.06123463,95369.0,95368.0,0.23644297]
[1735460019304,1.06023463,95369.0,95368.0,0.23244297]
[1735460019530,1.06123463,95369.0,95368.0,0.23644297]
[1735460019705,1.06023463,95369.0,95368.0,0.20037102]
[1735460020150,1.06123463,95369.0,95368.0,0.20337102]
[1735460023445,1.0447818,95369.0,95368.0,0.20337102]
[1735460026182,1.06123458,95369.0,95368.0,0.20337102]
[1735460028569,1.06023458,95369.0,95368.0,0.20337102]
[1735460028771,1.06123458,95369.0,95368.0,0.20337102]
[1735460028886,1.05923458,95369.0,95368.0,0.19637102]
[1735460029086,1.05923458,95369.0,95368.0,0.19937102]
[1735460029283,1.06023458,95369.0,95368.0,0.20337102]
[1735460030956,1.06023458,95369.0,95368.0,0.19937102]
[1735460031183,1.06023458,95369.0,95368.0,0.20337102]
[1735460031449,1.06123458,95369.0,95368.0,0.20337102]
[1735460033294,1.0447818,95369.0,95368.0,0.20337102]
[1735460036265,1.06123458,95369.0,95368.0,0.20337102]
[1735460038783,0.01862358,95369.0,95368.0,0.20337102]
[1735460038983,1.06123458,95369.0,95368.0,0.20337102]
[1735460042954,1.06123458,95369.0,95368.0,0.19937102]
[1735460042955,1.06023458,95369.0,95368.0,0.19937102]
[1735460043513,1.0437818,95369.0,95368.0,0.19937102]
[1735460044037,1.0427818,95369.0,95368.0,0.19637102]
[1735460044223,1.0427818,95369.0,95368.0,0.20037102]
[1735460044425,1.0437818,95369.0,95368.0,0.20337102]
[1735460044657,1.0427818,95369.0,95368.0,0.20037102]
[1735460044863,1.0427818,95369.0,95368.0,0.19637102]
[1735460045064,1.0437818,95369.0,95368.0,0.19937102]
[1735460045215,1.0437818,95369.0,95368.0,0.20337102]
[1735460046371,1.06023458,95369.0,95368.0,0.20337102]
[1735460053331,1.0437818,95369.0,95368.0,0.20337102]
[1735460056353,1.06023458,95369.0,95368.0,0.20337102]
[1735460063357,1.0437818,95369.0,95368.0,0.20337102]
[1735460066545,1.06023458,95369.0,95368.0,0.20337102]
[1735460093212,1.0437818,95369.0,95368.0,0.20337102]
[1735460096378,1.06023458,95369.0,95368.0,0.20337102]
[1735460097233,1.06023458,95369.0,95368.0,0.23637812]
[1735460097751,1.06023458,95369.0,95368.0,0.20337102]